[Event "Slovakian ECo-C Extraliga 2024-25"]
[Site "Slovakia"]
[Date "2025.01.18"]
[Round "3.5"]
[White "Zambor, Norbert"]
[Black "Hrabusa, Matej"]
[Result "0-1"]
[Annotator "TA"]
[ECO "B90"]
[WhiteElo "2243"]
[BlackElo "2356"]
[PlyCount "77"]
[EventDate "2024.09.12"]
[EventType "team-tourn"]
[EventCountry "SVK"]
[SourceTitle "playchess.com"]
[Source "ChessBase"]
[SourceQuality "1"]
[TimeControl "5400+30"]

{[%evp 21,77,0,24,14,32,20,41,37,7,7,39,27,74,-42,60,0,0,0,22,19,24,21,30,40,41,0,0,0,144,149,189,108,110,104,124,127,145,106,186,156,149,75,72,-44,-42,-42,-26,-325,-334,-336,-319,-391,-403,-1439,-1439,-29996,-29997,-29997]} 1. e4 {[%emt 0:00:01]} c5 {[%emt 0:00:11]} 2. Nf3 {[%emt 0:01:57]} d6 {[%emt 0:00:07]} 3. d4 {[%emt 0:00:41]} cxd4 {[%emt 0:00:06]} 4. Nxd4 {[%emt 0:00:05]} Nf6 {[%emt 0:00:09]} 5. Nc3 {[%emt 0:00:03]} a6 {[%emt 0:00:09]} 6. f3 {[%emt 0:00:26]} e5 {[%emt 0:00:42]} 7. Nb3 {[%emt 0:00:07]} Be6 {[%emt 0:00:31]} 8. Be3 {[%emt 0:00:07]} Be7 {[%emt 0:00:57]} 9. Qd2 {[%emt 0:00:53]} h5 {[%emt 0:00:08]} 10. O-O-O {[%emt 0:12:49]} Nbd7 {[%emt 0:01:22]} 11. Kb1 {[%emt 0:05:15]} Rc8 {[%emt 0:02:40]} 12. h3 {[%emt 0:08:08]} Qc7 {[%emt 0:04:04]} 13. Bd3 {[%emt 0:00:56]} h4 {[%emt 0:00:16]} 14. Rhe1 {[%emt 0:01:48]} b5 {[%emt 0:04:44]} 15. a3 {[%emt 0:07:22]} Rb8 {[%emt 0:08:37]} 16. Na2 {[%emt 0:04:15]} Nc5 {[%emt 0:21:30]} (16... d5 $11 {should be considered.}) 17. Rc1 {[%emt 0:05:45]} (17. Nb4 $16) 17... Bd8 {[%emt 0:12:42]} ({Black should try} 17... O-O $15) 18. Nxc5 {[%emt 0:03:38]} (18. Nb4 $14 Nxd3 19. Qxd3 (19. cxd3 Qb7 $14)) 18... dxc5 $11 {[%emt 0:00:21]} 19. c4 {[%emt 0:00:10]} b4 {[%emt 0:06:23]} 20. axb4 {[%emt 0:01:38]} cxb4 {[%emt 0:00:12]} 21. Nxb4 {[%emt 0:00:31]} Qb7 $1 {[%emt 0:01:30][%cal Od8a5]} 22. Nd5 {[%emt 0:11:07]} Ba5 $1 {[%emt 0:08:09]} 23. Qc2 {[%emt 0:05:26]} Bxe1 {[%emt 0:02:18]} 24. Rxe1 {[%emt 0:00:28]} Nd7 {[%emt 0:04:59]} (24... O-O $11 {remains equal.}) 25. c5 $16 {[%emt 0:05:19][%mdl 1024] and c6 should not be overlooked White has strong compensation.} Qc6 {[%emt 0:06:35][%cal Od7f6]} 26. Rc1 {[%emt 0:03:25]} ({White should try} 26. Rd1 $18) 26... Nf6 {[%emt 0:01:28]} 27. Nb6 {[%emt 0:01:40][%cal Oc2c3]} a5 {[%emt 0:03:04]} 28. Qc3 {[%emt 0:00:29]} O-O {[%emt 0:01:15]} 29. Qxa5 {[%emt 0:02:00]} Nd7 {[%emt 0:02:43]} (29... Nh5 $16 {keeps fighting.} 30. Qb5 Qxb5 31. Bxb5 Nf4 32. Bxf4 exf4) 30. Bb5 $18 {[%emt 0:06:22]} Qc7 {[%emt 0:00:08][%cal Ob8a8]} 31. Qa4 {[%emt 0:02:05]} (31. Qa6 $142) 31... Rfd8 $16 {[%emt 0:01:32]} 32. Nxd7 {[%emt 0:04:21]} (32. Qa3 $16) 32... Bxd7 $15 {[%emt 0:00:13]} 33. c6 {[%emt 0:00:13]} Be6 {[%emt 0:00:42] Hoping for ...Ra8.} 34. Bc5 $2 {[%emt 0:03:21][%mdl 8192] [#]} (34. Rc3 $11 {and White stays safe.}) 34... Ra8 $1 $19 {[%emt 0:01:23]} 35. Qb4 {[%emt 0:00:15]} Rdb8 {[%emt 0:01:53]} 36. Bd6 {[%emt 0:04:52]} Rxb5 $1 {[%emt 0:00:09]} 37. Qxb5 {[%emt 0:00:22]} (37. Bxc7 $142 Rxb4 38. Rc5) 37... Qxd6 {[%emt 0:00:15]} 38. Qb7 {[%emt 0:00:15]} Qd3+ {[%emt 0:01:12]} 39. Rc2 {[%emt 0:00:08]} 0-1

[Event "Slovakian ECo-C Extraliga 2024-25"]
[Site "Slovakia"]
[Date "2025.01.18"]
[Round "3.5"]
[White "Skreko, Igor"]
[Black "Hajek, Oskar"]
[Result "1-0"]
[Annotator "TA"]
[ECO "C70"]
[WhiteElo "2242"]
[BlackElo "2247"]
[PlyCount "105"]
[EventDate "2024.09.12"]
[EventType "team-tourn"]
[EventCountry "SVK"]
[SourceTitle "playchess.com"]
[Source "ChessBase"]
[SourceQuality "1"]
[TimeControl "5400+30"]

{[%evp 12,105,39,29,35,12,21,20,24,23,16,24,16,16,18,26,23,28,39,4,25,8,2,0,6,0,41,21,197,178,210,204,207,204,202,216,207,216,204,195,186,204,206,207,187,200,195,197,202,204,208,213,367,279,386,380,435,437,714,720,614,475,456,404,379,336,299,291,317,300,298,293,433,433,952,929,835,922,935,379,929,909,4622,4622,1761,1072,1473,986,4810,4810,4810,4810,4810,4810,4610,2974]} 1. e4 {[%emt 0:00:08]} e5 {[%emt 0:00:14]} 2. Nf3 {[%emt 0:00:16]} Nc6 {[%emt 0:00:15]} 3. Bb5 {[%emt 0:00:04]} a6 {[%emt 0:00:29]} 4. Ba4 {[%emt 0:00:01]} f5 {[%emt 0:01:34]} 5. d3 {[%emt 0:01:45]} fxe4 {[%emt 0:00:23]} 6. dxe4 {[%emt 0:00:02]} Nf6 {[%emt 0:00:35]} 7. O-O {[%emt 0:02:26]} d6 {[%emt 0:00:33][%cal Ob7b5]} 8. Re1 {[%emt 0:02:58]} Be7 {[%emt 0:00:38]} 9. c3 {[%emt 0:00:55]} O-O {[%emt 0:01:32]} 10. Bb3+ {[%emt 0:07:07][%cal Ba4b3,Bb3e6,Be6h3,Bh3g2][%mdl 32]} Kh8 {[%emt 0:01:10]} 11. Ng5 {[%emt 0:00:14]} Qe8 {[%emt 0:01:26] Dodges Nf7+} 12. Ne6 {[%emt 0:00:48]} Bxe6 {[%emt 0:00:08]} 13. Bxe6 {[%emt 0:00:03]} Nd8 {[%emt 0:15:28]} 14. Bh3 {[%emt 0:07:03]} c6 {[%emt 0:05:05]} 15. g3 {[%emt 0:06:06]} Nf7 {[%emt 0:01:52]} 16. Nd2 {[%emt 0:02:22]} d5 {[%emt 0:04:16]} 17. exd5 {[%emt 0:02:56]} cxd5 {[%emt 0:01:11]} 18. c4 {[%emt 0:07:42]} Ng5 {[%emt 0:07:21]} 19. Bg2 {[%emt 0:00:50]} Bc5 $2 {[%emt 0:22:34]} (19... Qf7 $1 $11 {and Black is okay.} 20. Kh1 (20. Rxe5 Ng4 $11) 20... Nge4 21. Nxe4 dxe4) 20. Nb3 $18 {[%emt 0:11:11]} (20. Bxd5 $2 Nxd5 21. cxd5 Rxf2 $19 (21... Bxf2+ $2 22. Kh1 $19)) (20. cxd5 Nxd5 21. Rf1 (21. Bxd5 Rd8 $17) 21... Rd8 $14) 20... Bxf2+ {[%emt 0:01:57]} 21. Kxf2 {[%emt 0:00:11]} Ng4+ {[%emt 0:02:06]} 22. Kg1 {[%emt 0:00:12]} Nf2 {[%emt 0:00:50]} 23. Qxd5 {[%emt 0:07:13]} Nfh3+ {[%emt 0:04:11]} 24. Bxh3 {[%emt 0:01:06]} (24. Kh1 Rd8 (24... Nf2+ $2 25. Kg1 $18) 25. Bxh3 (25. Qxb7 Nf2+ 26. Kg1 Ngh3+ 27. Bxh3 Nxh3+ 28. Kg2 Rf2+ 29. Kh1 Qh5 $11) 25... Rxd5 26. Bxg5 Rd3) 24... Nxh3+ {[%emt 0:00:04]} 25. Kh1 $1 {[%emt 0:06:48]} Nf2+ {[%emt 0:01:21]} 26. Kg2 {[%emt 0:00:34]} Qh5 {[%emt 0:06:36] [#] Hoping for ...Rad8.} 27. Bf4 $1 {[%emt 0:06:21]} Qh3+ {[%emt 0:03:50]} (27... Ng4 28. h3 (28. Bxe5 $2 Qxh2#) 28... Qg6 29. hxg4 (29. Bxe5 Qc2+ 30. Nd2 Nxe5 $16)) 28. Kxf2 {[%emt 0:01:15][%cal Bg2f2,Bf2g1,Bg1h1][%mdl 32]} exf4 {[%emt 0:00:13][%cal Be5f4,Bf4g3,Bg3h2][%mdl 32] [#]} 29. Qg2 $1 {[%emt 0:02:31]} (29. Qxb7 $2 Qxh2+ 30. Kf3 Qxg3+ (30... fxg3+ $2 31. Ke3 $19) 31. Ke2 Rfe8+ 32. Kd2 Rad8+ $19) 29... fxg3+ {[%emt 0:02:18]} 30. Kg1 {[%emt 0:00:06]} gxh2+ {[%emt 0:01:06]} 31. Kh1 $1 {[%emt 0:01:07]} Qh6 $2 {[%emt 0:03:16]} (31... Qxg2+ {was worth a try.} 32. Kxg2 Rf4) 32. Re7 {[%emt 0:03:25]} (32. Qxh2 Qc6+ 33. Qg2 Qh6+ 34. Qh2 Qc6+ 35. Qg2 Qh6+ 36. Kg1 Rf6 $11) 32... Rad8 {[%emt 0:02:40]} 33. Rae1 {[%emt 0:01:06]} (33. Qxh2 Qc6+ 34. Qg2 Qh6+ (34... Qxc4 35. Qxg7#) 35. Qh2 Qc6+ 36. Qg2 Qh6+ 37. Qh2 $11) (33. Rxb7 Rf4 $18) 33... Qf6 {[%emt 0:03:57]} 34. Nc5 {[%emt 0:02:37][%cal Bb3c5,Bc5d7,Bd7e5,Be5g4][%mdl 32]} (34. Qxh2 Rd1 $14) (34. Rxb7 Rde8 35. Rd1 (35. Rxe8 $2 Rxe8 $19) 35... Re3 $18) 34... Rg8 {[%emt 0:04:33]} (34... Rd1 $142 35. Rxd1 (35. Rxb7 Rxe1+) (35. Qxb7 Qd4 $17) 35... Qxe7) 35. Nd7 {[%emt 0:00:42]} Qh4 {[%emt 0:00:47]} 36. R7e4 {[%emt 0:01:22]} Qh5 {[%emt 0:00:39]} 37. Ne5 {[%emt 0:00:44]} (37. Qxh2 Qxh2+ 38. Kxh2 Rxd7 $15) 37... Rgf8 {[%emt 0:01:00]} 38. b3 {[%emt 0:03:45]} (38. Qxh2 Qxh2+ 39. Kxh2 Kg8 $18) 38... Rd1 {[%emt 0:00:45]} 39. Ng4 {[%emt 0:05:41]} (39. Qxh2 Rf1+ 40. Rxf1 Rxf1+ 41. Kg2 Rf2+ 42. Kxf2 Qxh2+ 43. Ke3 h5 $19 (43... Qxa2 $2 44. b4 $19)) 39... Rfd8 {[%emt 0:00:28]} 40. Qf3 {[%emt 0:02:15]} (40. Qxh2 $2 Rxe1+ 41. Rxe1 Qxg4 $19) 40... Rxe1+ {[%emt 0:00:37]} 41. Rxe1 {[%emt 0:00:07]} Qa5 {[%emt 0:00:00]} (41... Qh4 $142 42. Rf1 Qe7) 42. Rf1 {[%emt 0:00:00][%cal Of3f8]} Rg8 {[%emt 0:00:00]} (42... h5 $142 43. Nxh2 Qg5 44. Qxb7 Qh4) 43. Qd5 {[%emt 0:00:00]} Qxd5+ {[%emt 0:00:00]} 44. cxd5 {[%emt 0:00:00][%cal Bc4d5,Bd5d6,Bd6d7][%mdl 4128] Endgame KRN-KR} Rd8 {[%emt 0:00:00]} 45. Rd1 {[%emt 0:00:00]} (45. Ne5 $142 {Intending Nf7+ and mate.} Kg8 46. Rd1 (46. Kxh2 Rxd5 47. Nf3 g5 $16)) 45... Kg8 $2 {[%emt 0:00:00]} (45... g5 46. d6 (46. Nxh2 Kg7 $18) 46... Kg7) 46. Ne5 {[%emt 0:00:00]} g6 {[%emt 0:00:00]} 47. d6 {[%emt 0:00:00]} Kg7 {[%emt 0:00:00]} 48. d7 {[%emt 0:00:00]} Kf6 {[%emt 0:00:00]} 49. Nc4 {[%emt 0:00:00][%cal Oc4b6] And now Nb6! would win.} Ke7 {[%emt 0:00:00] [#]} 50. Nb6 $1 {[%emt 0:00:00]} ({Less strong is} 50. Kxh2 Rxd7 51. Re1+ Kf6 $16) 50... Rf8 {[%emt 0:00:00]} 51. Re1+ {[%emt 0:00:00]} Kd8 {[%emt 0:00:00]} 52. Rc1 {[%emt 0:00:00]} Ke7 {[%emt 0:00:00]} 53. Rc8 {[%emt 0:00:00]} 1-0

[Event "Slovakian ECo-C Extraliga 2024-25"]
[Site "Slovakia"]
[Date "2025.01.18"]
[Round "3.6"]
[White "Toth, Ervin"]
[Black "Pasti, Aron"]
[Result "0-1"]
[Annotator "TA"]
[ECO "D36"]
[WhiteElo "2403"]
[BlackElo "2372"]
[PlyCount "23"]
[EventDate "2024.09.12"]
[EventType "team-tourn"]
[EventCountry "SVK"]
[SourceTitle "playchess.com"]
[Source "ChessBase"]
[SourceQuality "1"]
[TimeControl "5400+30"]

{[%evp 18,23,27,24,21,10,40,-115]} 1. d4 {[%emt 0:11:33]} Nf6 {[%emt 0:00:02]} 2. c4 {[%emt 0:00:04]} e6 {[%emt 0:26:55]} 3. Nc3 {[%emt 0:00:04]} d5 {[%emt 0:00:03]} 4. cxd5 {[%emt 0:00:04]} exd5 {[%emt 0:00:02]} 5. Bg5 {[%emt 0:00:02]} Be7 {[%emt 0:00:04]} 6. e3 {[%emt 0:00:02]} O-O {[%emt 0:00:07]} 7. Bd3 {[%emt 0:00:02]} Re8 {[%emt 0:00:05]} 8. Nf3 {[%emt 0:00:03]} Nbd7 {[%emt 0:00:07]} 9. O-O {[%emt 0:00:04]} c6 {[%emt 0:00:01]} 10. Qc2 {[%emt 0:00:00]} g6 {[%emt 0:00:05] D36: Queen's Gambit Declined: Exchange Variation: Main line (5 Bg5 c6 6 Qc2).} 11. h3 {[%emt 0:00:00]} Bf8 {[%emt 0:00:07]} 12. Ne5 $146 {[%emt 0:00:00] Weighted Error Value: White=0.05 (flawless) /Black=0.15 (very precise)   Mistake:       	White=1     	---        Inaccurate:     	---       	Black=1} (12. Rfe1 $14) (12. e4 dxe4 13. Nxe4 Bg7 14. Bc4 Rf8 15. Ne5 h6 16. Nxf7 Rxf7 17. Nd6 Kh7 18. Nxf7 {1-0 Jakobsen,A-Luostarinen,A NOR-chT Finnmark 2010 (5.4)}) 0-1

[Event "Slovakian ECo-C Extraliga 2024-25"]
[Site "Slovakia"]
[Date "2025.01.18"]
[Round "3.6"]
[White "Mikrut, Dariusz"]
[Black "Kantorik, Marian"]
[Result "1/2-1/2"]
[Annotator "TA"]
[ECO "D41"]
[WhiteElo "2308"]
[BlackElo "2171"]
[PlyCount "33"]
[EventDate "2024.09.12"]
[EventType "team-tourn"]
[EventCountry "SVK"]
[SourceTitle "playchess.com"]
[Source "ChessBase"]
[SourceQuality "1"]
[TimeControl "5400+30"]

{[%evp 19,33,0,11,-16,52,52,51,49,78,0,0,-3,0,-16,-18,-30]} 1. d4 {[%emt 0:00:02]} Nf6 {[%emt 0:00:29]} 2. c4 {[%emt 0:00:06]} e6 {[%emt 0:00:06]} 3. Nc3 {[%emt 0:01:30]} d5 {[%emt 0:01:49]} 4. Nf3 {[%emt 0:00:31]} c5 {[%emt 0:02:13]} 5. cxd5 {[%emt 0:01:48]} Nxd5 {[%emt 0:00:28]} 6. e3 {[%emt 0:01:34]} cxd4 {[%emt 0:01:57]} 7. exd4 {[%emt 0:00:35]} Be7 {[%emt 0:00:47]} 8. Bd3 {[%emt 0:02:34]} b6 {[%emt 0:02:41]} 9. O-O {[%emt 0:00:27]} Bb7 {[%emt 0:01:16]} 10. Bb5+ {[%emt 0:06:54]} Bc6 {[%emt 0:05:35]} 11. Qa4 {[%emt 0:00:20]} Bxb5 {[%emt 0:02:40]} (11... Qd7 $11 12. Ne5 Nxc3) 12. Qxb5+ $14 {[%emt 0:00:14]} Qd7 {[%emt 0:00:05] [#]} 13. Nxd5 $1 {[%emt 0:02:16]} exd5 {[%emt 0:02:10] [#]} 14. Qxd7+ {[%emt 0:01:50]} ({Better is} 14. a4 $1 $16) 14... Nxd7 $11 {[%emt 0:00:07]} 15. Re1 {[%emt 0:00:04]} f6 {[%emt 0:04:53]} 16. Bf4 {[%emt 0:05:56] aiming for Bd6.} Kf7 {[%emt 0:00:07]} 17. Rac1 {[%emt 0:13:59]} 1/2-1/2

[Event "Slovakian ECo-C Extraliga 2024-25"]
[Site "Slovakia"]
[Date "2025.01.18"]
[Round "3.6"]
[White "Briestensky, Rastislav"]
[Black "Gasa, Andrej"]
[Result "1-0"]
[Annotator "TA"]
[ECO "B52"]
[WhiteElo "2251"]
[BlackElo "2151"]
[PlyCount "101"]
[EventDate "2024.09.12"]
[EventType "team-tourn"]
[EventCountry "SVK"]
[SourceTitle "playchess.com"]
[Source "ChessBase"]
[SourceQuality "1"]
[TimeControl "5400+30"]

{[%evp 9,101,-1238,12,9,26,0,0,10,7,4,4,-8,17,21,90,73,71,36,98,31,80,82,72,43,43,46,47,47,52,20,37,13,35,36,38,27,35,37,1,13,18,20,23,8,40,0,23,0,0,0,0,0,43,0,15,0,87,33,26,-7,10,0,0,-30,0,0,0,0,0,0,0,0,36,36,136,53,294,281,321,418,437,437,779,833,831,820,760,776,29992,29993,29997,29998,29998,29999]} 1. e4 {[%emt 0:00:05]} c5 {[%emt 0:00:06]} 2. Nf3 {[%emt 0:00:05]} d6 {[%emt 0:00:21]} 3. Bb5+ {[%emt 0:00:29]} Bd7 {[%emt 0:01:13]} 4. Qe2 {[%emt 0:02:03]} Bxb5 {[%emt 0:08:21]} 5. Qd3 {[%emt 0:00:13] [#]} Bc4 $2 6. Qxc4 $11 {[%emt 0:00:31]} Qd7 {[%emt 0:00:32]} 7. Qe2 {[%emt 0:00:08]} Nc6 {[%emt 0:00:12]} 8. c3 {[%emt 0:00:05]} e5 {[%emt 0:04:28]} 9. O-O {[%emt 0:00:10][%cal Od2d4]} Be7 {[%emt 0:13:04]} 10. Rd1 {[%emt 0:02:57]} Nf6 {[%emt 0:01:03]} 11. d4 {[%emt 0:04:05]} Qc7 {[%emt 0:01:48]} (11... exd4 $1 $11 {remains equal.} 12. cxd4 d5) 12. Bg5 {[%emt 0:10:16]} O-O {[%emt 0:00:20]} 13. Na3 {[%emt 0:04:38]} Rad8 {[%emt 0:00:24]} (13... exd4 $14 14. cxd4 cxd4) 14. Rac1 {[%emt 0:08:26]} (14. Nb5 $16 Qb8 15. d5) 14... Rfe8 {[%emt 0:02:11]} (14... exd4 $14 {might be stronger.} 15. cxd4 d5) 15. d5 $16 {[%emt 0:04:51]} Nb8 {[%emt 0:00:08]} 16. b4 {[%emt 0:05:22]} Nbd7 {[%emt 0:01:04]} 17. Nb5 {[%emt 0:01:14]} Qb8 {[%emt 0:04:09]} 18. a4 {[%emt 0:01:34][%cal Ba2a4,Ba4a5][%mdl 32]} Rc8 {[%emt 0:01:52]} 19. Rb1 {[%emt 0:08:55]} h6 {[%emt 0:08:27]} 20. Bc1 {[%emt 0:05:56]} a6 {[%emt 0:05:15]} 21. Na3 {[%emt 0:01:36]} cxb4 {[%emt 0:00:07]} 22. cxb4 {[%emt 0:02:13]} Nb6 {[%emt 0:00:15][%cal Bd7b6,Bb6a4,Ba4c3][%mdl 32]} 23. a5 {[%emt 0:02:42]} Na4 {[%emt 0:02:41] ...Nc3 would now be deadly.} 24. Bd2 {[%emt 0:00:05]} Nc3 {[%emt 0:00:10]} 25. Bxc3 {[%emt 0:00:04]} Rxc3 {[%emt 0:00:07]} 26. Nc4 {[%emt 0:00:36]} Nd7 {[%emt 0:09:21]} 27. Ne3 {[%emt 0:06:26]} Qc7 {[%emt 0:01:29]} 28. h4 {[%emt 0:01:21]} Rc8 {[%emt 0:01:25]} 29. g3 {[%emt 0:00:56]} Nf6 {[%emt 0:02:35]} 30. Nd2 {[%emt 0:01:04]} g6 {[%emt 0:00:55]} 31. Kg2 {[%emt 0:04:13][%cal Oe3c4]} (31. Nec4 $5) 31... Nh5 {[%emt 0:05:12][%cal Oe7h4]} 32. Rh1 {[%emt 0:01:36][%cal Od2c4]} Ng7 {[%emt 0:03:39]} (32... Nf6 $11) 33. Nd1 {[%emt 0:04:49]} (33. Ndc4 $16) 33... Rc2 $14 {[%emt 0:00:35]} 34. Qd3 {[%emt 0:01:07]} h5 {[%emt 0:05:09]} 35. Re1 {[%emt 0:01:51]} f5 {[%emt 0:01:50]} 36. Re2 {[%emt 0:00:31]} fxe4 {[%emt 0:06:38]} 37. Qxe4 {[%emt 0:01:24]} Nf5 {[%emt 0:00:13]} 38. Ne3 {[%emt 0:00:28]} Nxe3+ {[%emt 0:00:55]} 39. Qxe3 {[%emt 0:02:01]} Kg7 {[%emt 0:00:28] Prevents Qh6+.} 40. Rb3 $36 {[%emt 0:03:00][%mdl 2048] White has some pressure.} Bd8 {[%emt 0:02:48]} 41. Ne4 {[%emt 0:00:52]} Rc4 {[%emt 0:00:13] [#]} (41... Rxe2 $14 42. Qxe2 Qd7) 42. f4 {[%emt 0:02:51]} ({White should try} 42. b5 $1 $16 {[%cal Rb5a6]}) 42... Qf7 $2 {[%emt 0:00:00]} (42... exf4 $1 $14 43. Qxf4 Be7) 43. fxe5 $18 {[%emt 0:00:00] aiming for Rd3.} (43. Nxd6 Qxd5+ 44. Ne4 Rxe4 45. Qxe4 Qxb3 $17) 43... dxe5 {[%emt 0:00:00] [#]} 44. Rd3 $1 {[%emt 0:00:00]} Rc1 {[%emt 0:00:00]} (44... Rxb4 45. Nd6 Qd7 46. Nxc8 Qxc8 47. Qxe5+ Bf6 48. Qe6 $18) 45. Rf2 {[%emt 0:00:00][%cal Be2f2,Bf2f7,Bf7g7][%mdl 32] Active counter play!} R1c2 {[%emt 0:00:00]} (45... R8c2 $142 46. Rdd2 Rxd2 47. Qxd2 Qc7) 46. Rdd2 {[%emt 0:00:00]} Rxd2 {[%emt 0:00:00]} 47. Qxd2 {[%emt 0:00:00]} (47. Rxd2 Rc1 48. Qd3 Qc7 $18) 47... Qd7 {[%emt 0:06:13]} 48. Nc5 {[%emt 0:00:00]} Qg4 {[%emt 0:00:11]} 49. Ne6+ {[%emt 0:00:00]} ({Not} 49. Nxb7 Qe4+ (49... Bxh4 $2 {is the wrong capture.} 50. Qe3 $18) 50. Kh2 Be7 $16) 49... Kh7 {[%emt 0:00:24]} 50. Rf7+ {[%emt 0:00:00]} Kg8 {[%emt 0:00:07]} 51. Rg7+ {[%emt 0:00:00]} 1-0

[Event "Slovakian ECo-C Extraliga 2024-25"]
[Site "Slovakia"]
[Date "2025.01.18"]
[Round "3.6"]
[White "Galla, Richard"]
[Black "Jablonicky, Martin"]
[Result "0-1"]
[Annotator "TA"]
[ECO "A58"]
[WhiteElo "1977"]
[BlackElo "2418"]
[PlyCount "54"]
[EventDate "2024.09.12"]
[EventType "team-tourn"]
[EventCountry "SVK"]
[SourceTitle "playchess.com"]
[Source "ChessBase"]
[SourceQuality "1"]
[TimeControl "5400+30"]

{[%evp 22,54,41,9,40,0,0,0,24,0,0,-40,-45,-82,-43,-38,-43,-115,-129,-137,-127,-157,-139,-139,-122,-106,-145,-303,-300,-299,-337,-293,-267,-526,-520]} 1. d4 {[%emt 0:00:09]} Nf6 {[%emt 0:00:48]} 2. c4 {[%emt 0:00:17][%cal Bc2c4,Bc4b5][%mdl 32]} g6 {[%emt 0:01:01]} 3. g3 {[%emt 0:00:05]} c5 {[%emt 0:01:14]} 4. d5 {[%emt 0:00:02]} b5 {[%emt 0:00:17]} 5. cxb5 {[%emt 0:00:07]} a6 {[%emt 0:00:07]} 6. bxa6 {[%emt 0:00:05]} Bg7 {[%emt 0:01:07]} 7. Bg2 {[%emt 0:00:03]} O-O {[%emt 0:01:18]} 8. Nc3 {[%emt 0:00:12]} d6 {[%emt 0:00:06]} 9. Nf3 {[%emt 0:00:06]} Bxa6 {[%emt 0:00:10]} 10. O-O {[%emt 0:02:33]} Nbd7 {[%emt 0:00:04]} 11. Re1 {[%emt 0:13:12]} Qa5 {[%emt 0:03:42]} 12. Qc2 {[%emt 0:07:33]} Rfb8 {[%emt 0:00:21]} 13. h3 {[%emt 0:09:49]} Nb6 {[%emt 0:10:42]} 14. Nd2 {[%emt 0:03:09] [#] Strongly threatening Nb3.} Bc8 {[%emt 0:00:43] The position is equal.} 15. e4 {[%emt 0:02:18]} Nfd7 {[%emt 0:00:19][%cal Bf6d7,Bd7c5,Bc5a4,Ba4b2,Bb2d1][%mdl 32]} 16. f4 {[%emt 0:00:42]} c4 $1 {[%emt 0:04:30][%mdl 1024] Black has compensation.} 17. Bf1 {[%emt 0:12:44]} Ba6 {[%emt 0:05:54]} 18. Nf3 {[%emt 0:07:17]} Nc5 {[%emt 0:00:05]} 19. Be3 {[%emt 0:12:00] [#]} (19. Re3 $15) 19... Nba4 $1 $17 {[%emt 0:07:24]} 20. Nxa4 {[%emt 0:02:49]} Nxa4 {[%emt 0:02:24]} 21. b4 {[%emt 0:05:40]} Rxb4 {[%emt 0:01:42]} 22. Rab1 {[%emt 0:00:51]} Rb2 {[%emt 0:02:53]} 23. Rxb2 {[%emt 0:00:44]} Nxb2 {[%emt 0:00:02]} 24. Rb1 $2 {[%emt 0:04:44] Now White is beyond hope.} (24. e5 $17 {is a better defense.} Nd3 (24... Qxa2 25. Bd4 $11) (24... Qxd5 25. Qxb2 c3 26. Qb6 $16) 25. Bxd3 cxd3 26. Qb3) 24... c3 $19 {[%emt 0:00:02]} (24... Qxa2 25. Bd4 Bxd4+ 26. Nxd4 $11) 25. Bxa6 {[%emt 0:01:27]} Qxa6 {[%emt 0:00:07]} ({Much less strong is} 25... Rxa6 26. Rc1 $19) 26. Nd4 {[%emt 0:01:32]} Qa4 {[%emt 0:00:48]} 27. Qxc3 {[%emt 0:01:38]} (27. Qxa4 Rxa4 28. Nc2) 27... Nd1 {[%emt 0:00:14] Weighted Error Value: White=0.50/Black=0.12 (very precise) .  Mistake:       	White=3     	---        Inaccurate:     	White=3     	Black=1      OK:         	White=4     	Black=4      Best:        	---       	Black=2      Strong:       	---       	Black=2} (27... Qxa2 $2 {loses.} 28. Rxb2 Qa6 29. Bf2 $18) 0-1